[Event "Early-Titled-Tuesday-Blitz-July-09-2024"]
[Site "Chess.com"]
[Date "2024.07.09"]
[Round "5"]
[White "IsuruAlahakoon"]
[Black "Me_ch_an"]
[Result "1-0"]
[WhiteElo "2440"]
[BlackElo "2302"]
[TimeControl "180+1"]
[EndTime "8:58:33 PDT"]
[Termination "IsuruAlahakoon won by resignation"]

1. Nf3 {[%clk 0:03:00.9]} 1... d5 {[%clk 0:02:57.1]} 2. e3 {[%clk 0:03:00.5]}
2... Nf6 {[%clk 0:02:56.8]} 3. b3 {[%clk 0:03:00.3]} 3... c5 {[%clk 0:02:56]} 4.
Bb2 {[%clk 0:02:58.7]} 4... Nc6 {[%clk 0:02:55.1]} 5. Bb5 {[%clk 0:02:48.8]}
5... Bg4 {[%clk 0:02:52.7]} 6. h3 {[%clk 0:02:45.5]} 6... Bxf3 {[%clk
0:02:47.3]} 7. Qxf3 {[%clk 0:02:45.3]} 7... Rc8 {[%clk 0:02:47.4]} 8. c4 {[%clk
0:02:43.4]} 8... a6 {[%clk 0:02:45.5]} 9. Bxc6+ {[%clk 0:02:37.3]} 9... Rxc6
{[%clk 0:02:33.9]} 10. Bxf6 {[%clk 0:02:28.5]} 10... gxf6 {[%clk 0:02:22.3]} 11.
Qxd5 {[%clk 0:02:21.6]} 11... Qc8 {[%clk 0:02:20.8]} 12. Nc3 {[%clk 0:02:17.6]}
12... Bg7 {[%clk 0:02:19.3]} 13. O-O {[%clk 0:02:15.1]} 13... Rd6 {[%clk
0:02:14.1]} 14. Qh5 {[%clk 0:02:02.9]} 14... f5 {[%clk 0:02:07.3]} 15. Rad1
{[%clk 0:01:43.2]} 15... O-O {[%clk 0:01:56.2]} 16. Ne2 {[%clk 0:01:36.7]} 16...
Rfd8 {[%clk 0:01:52.8]} 17. Ng3 {[%clk 0:01:34.6]} 17... e6 {[%clk 0:01:44]} 18.
Qg5 {[%clk 0:01:26.2]} 18... f6 {[%clk 0:01:43.5]} 19. Qf4 {[%clk 0:01:26.1]}
19... Rxd2 {[%clk 0:01:35.5]} 20. Rxd2 {[%clk 0:01:26.1]} 20... Rxd2 {[%clk
0:01:36.1]} 21. e4 {[%clk 0:01:26.8]} 21... Rd4 {[%clk 0:01:27.6]} 22. Qf3
{[%clk 0:01:13.9]} 22... fxe4 {[%clk 0:01:17.4]} 23. Nxe4 {[%clk 0:01:14.8]}
23... Qd8 {[%clk 0:01:14.6]} 24. Re1 {[%clk 0:01:12.2]} 24... b6 {[%clk
0:01:10.9]} 25. Ng3 {[%clk 0:01:05.8]} 25... Qd7 {[%clk 0:00:47.4]} 26. Qa8+
{[%clk 0:00:56.1]} 26... Kf7 {[%clk 0:00:46.4]} 27. Qxa6 {[%clk 0:00:54.9]}
27... Rd1 {[%clk 0:00:43.1]} 28. Rxd1 {[%clk 0:00:51.3]} 28... Qxd1+ {[%clk
0:00:44]} 29. Kh2 {[%clk 0:00:51.8]} 29... Qd6 {[%clk 0:00:43.8]} 30. Qb7+
{[%clk 0:00:47.3]} 30... Kg6 {[%clk 0:00:44.1]} 31. Qe4+ {[%clk 0:00:46.1]}
31... f5 {[%clk 0:00:44.3]} 32. Qh4 {[%clk 0:00:42.7]} 32... Be5 {[%clk
0:00:42.4]} 33. Qh5+ {[%clk 0:00:37.9]} 33... Kg7 {[%clk 0:00:42.8]} 34. Qf3
{[%clk 0:00:34.2]} 34... Bxg3+ {[%clk 0:00:18.3]} 35. Qxg3+ {[%clk 0:00:33.1]}
35... Qxg3+ {[%clk 0:00:18.1]} 36. Kxg3 {[%clk 0:00:34]} 36... Kf6 {[%clk
0:00:18.3]} 37. f4 {[%clk 0:00:32.3]} 37... e5 {[%clk 0:00:14]} 38. fxe5+ {[%clk
0:00:31.9]} 38... Kxe5 {[%clk 0:00:14.4]} 39. Kf3 {[%clk 0:00:30.8]} 39... f4
{[%clk 0:00:14.4]} 40. h4 {[%clk 0:00:25.1]} 40... h5 {[%clk 0:00:13.4]} 41. a3
{[%clk 0:00:22.4]} 41... Kd4 {[%clk 0:00:09.8]} 42. Kxf4 {[%clk 0:00:21.9]}
42... Kc3 {[%clk 0:00:10.4]} 43. g4 {[%clk 0:00:22.1]} 43... Kxb3 {[%clk
0:00:09]} 44. gxh5 {[%clk 0:00:21.4]} 44... Kxc4 {[%clk 0:00:09]} 45. h6 {[%clk
0:00:21.6]} 45... Kb3 {[%clk 0:00:08.3]} 46. h7 {[%clk 0:00:21.6]} 46... c4
{[%clk 0:00:09.2]} 47. h8=Q {[%clk 0:00:21]} 47... c3 {[%clk 0:00:10.1]} 1-0

[Event "Early-Titled-Tuesday-Blitz-July-09-2024"]
[Site "Chess.com"]
[Date "2024.07.09"]
[Round "5"]
[White "krzyzan94"]
[Black "bilosuvenosu06"]
[Result "1-0"]
[WhiteElo "2790"]
[BlackElo "2552"]
[TimeControl "180+1"]
[EndTime "8:58:35 PDT"]
[Termination "krzyzan94 won on time"]

1. Nf3 {[%clk 0:03:00.9]} 1... d5 {[%clk 0:02:58.8]} 2. g3 {[%clk 0:03:00.5]}
2... Nf6 {[%clk 0:02:58.2]} 3. Bg2 {[%clk 0:03:00.7]} 3... Nbd7 {[%clk
0:02:58.3]} 4. d4 {[%clk 0:03:00]} 4... e6 {[%clk 0:02:58.5]} 5. O-O {[%clk
0:02:56.7]} 5... Bd6 {[%clk 0:02:58.6]} 6. a4 {[%clk 0:02:49.9]} 6... c6 {[%clk
0:02:58.8]} 7. c4 {[%clk 0:02:47.6]} 7... O-O {[%clk 0:02:58.1]} 8. Qd3 {[%clk
0:02:40.7]} 8... Ne4 {[%clk 0:02:56.7]} 9. Nc3 {[%clk 0:02:39.4]} 9... f5 {[%clk
0:02:56.5]} 10. b3 {[%clk 0:02:29.5]} 10... Qf6 {[%clk 0:02:40.5]} 11. Ba3
{[%clk 0:02:25.4]} 11... Bxa3 {[%clk 0:02:36.4]} 12. Rxa3 {[%clk 0:02:26.3]}
12... g5 {[%clk 0:02:35.5]} 13. Ra2 {[%clk 0:02:15.2]} 13... g4 {[%clk 0:02:33]}
14. Nd2 {[%clk 0:02:13.1]} 14... Qh6 {[%clk 0:02:25.8]} 15. f3 {[%clk
0:02:09.4]} 15... Nxd2 {[%clk 0:02:17]} 16. Rxd2 {[%clk 0:01:57.8]} 16... Nf6
{[%clk 0:02:17]} 17. c5 {[%clk 0:01:31.4]} 17... Bd7 {[%clk 0:02:13]} 18. Nd1
{[%clk 0:01:31.4]} 18... Rae8 {[%clk 0:02:10.1]} 19. Qe3 {[%clk 0:01:26.8]}
19... Qxe3+ {[%clk 0:02:07.8]} 20. Nxe3 {[%clk 0:01:27.7]} 20... e5 {[%clk
0:01:57.8]} 21. dxe5 {[%clk 0:01:28.6]} 21... Rxe5 {[%clk 0:01:58.4]} 22. Nc2
{[%clk 0:01:29.3]} 22... Rfe8 {[%clk 0:01:57.8]} 23. Kf2 {[%clk 0:01:25.8]}
23... gxf3 {[%clk 0:01:55.9]} 24. exf3 {[%clk 0:01:25.8]} 24... Kf7 {[%clk
0:01:47.5]} 25. Re1 {[%clk 0:01:24.4]} 25... Rxe1 {[%clk 0:01:47.2]} 26. Nxe1
{[%clk 0:01:25.3]} 26... f4 {[%clk 0:01:35.4]} 27. Nd3 {[%clk 0:01:21.1]} 27...
fxg3+ {[%clk 0:01:35.3]} 28. hxg3 {[%clk 0:01:21.4]} 28... Bf5 {[%clk
0:01:35.9]} 29. Nf4 {[%clk 0:01:19]} 29... Nd7 {[%clk 0:01:30.3]} 30. b4 {[%clk
0:01:10.8]} 30... Ne5 {[%clk 0:01:30.2]} 31. Bf1 {[%clk 0:01:11.5]} 31... Bd7
{[%clk 0:01:27.7]} 32. b5 {[%clk 0:01:08.1]} 32... Bf5 {[%clk 0:01:24.6]} 33. g4
{[%clk 0:01:02.2]} 33... Bg6 {[%clk 0:01:19.5]} 34. Rb2 {[%clk 0:00:56.3]} 34...
Re7 {[%clk 0:01:06.5]} 35. bxc6 {[%clk 0:00:50.7]} 35... bxc6 {[%clk 0:01:06.3]}
36. Ba6 {[%clk 0:00:49.1]} 36... Nd7 {[%clk 0:01:04.7]} 37. Bb7 {[%clk
0:00:27.1]} 37... Nxc5 {[%clk 0:00:51.2]} 38. Bxc6 {[%clk 0:00:27]} 38... d4
{[%clk 0:00:51.7]} 39. Bd5+ {[%clk 0:00:26.8]} 39... Kg7 {[%clk 0:00:50.9]} 40.
a5 {[%clk 0:00:22.8]} 40... Rd7 {[%clk 0:00:46.5]} 41. Bc4 {[%clk 0:00:22.6]}
41... Bf7 {[%clk 0:00:45]} 42. Bxf7 {[%clk 0:00:17.6]} 42... Rxf7 {[%clk
0:00:45.9]} 43. Nh5+ {[%clk 0:00:16.3]} 43... Kg6 {[%clk 0:00:44.3]} 44. Rb5
{[%clk 0:00:14.9]} 44... Nd3+ {[%clk 0:00:42.8]} 45. Kg3 {[%clk 0:00:13.9]}
45... Re7 {[%clk 0:00:39.2]} 46. Rd5 {[%clk 0:00:13.8]} 46... Re3 {[%clk
0:00:22.4]} 47. Rxd4 {[%clk 0:00:14.1]} 47... Nc5 {[%clk 0:00:17.3]} 48. Rd6+
{[%clk 0:00:13.4]} 48... Kf7 {[%clk 0:00:12.9]} 49. Rd5 {[%clk 0:00:13.5]} 49...
Rc3 {[%clk 0:00:07.9]} 50. g5 {[%clk 0:00:12.5]} 1-0

[Event "Early-Titled-Tuesday-Blitz-July-09-2024"]
[Site "Chess.com"]
[Date "2024.07.09"]
[Round "5"]
[White "montyotto"]
[Black "NM_Antelacus"]
[Result "0-1"]
[WhiteElo "2410"]
[BlackElo "2296"]
[TimeControl "180+1"]
[EndTime "8:58:35 PDT"]
[Termination "NM_Antelacus won by resignation"]

1. e4 {[%clk 0:03:00.9]} 1... c5 {[%clk 0:02:59.9]} 2. Nc3 {[%clk 0:03:00.5]}
2... Nc6 {[%clk 0:02:59.8]} 3. f4 {[%clk 0:03:00.4]} 3... g6 {[%clk 0:02:59.7]}
4. Nf3 {[%clk 0:03:00.5]} 4... Bg7 {[%clk 0:02:59.9]} 5. Bc4 {[%clk 0:03:00.8]}
5... e6 {[%clk 0:03:00.3]} 6. f5 {[%clk 0:03:01.2]} 6... Nge7 {[%clk 0:02:59.4]}
7. fxe6 {[%clk 0:03:01.2]} 7... fxe6 {[%clk 0:02:56.6]} 8. d3 {[%clk 0:03:01.4]}
8... O-O {[%clk 0:02:53.7]} 9. O-O {[%clk 0:03:01.3]} 9... d5 {[%clk 0:02:53]}
10. Bb3 {[%clk 0:03:01.1]} 10... Nd4 {[%clk 0:02:52.4]} 11. Nxd4 {[%clk
0:03:00]} 11... cxd4 {[%clk 0:02:52.2]} 12. Rxf8+ {[%clk 0:02:59.5]} 12... Bxf8
{[%clk 0:02:48.8]} 13. Ne2 {[%clk 0:02:55.7]} 13... dxe4 {[%clk 0:02:39.5]} 14.
dxe4 {[%clk 0:02:55.5]} 14... Nc6 {[%clk 0:02:39.4]} 15. Nf4 {[%clk 0:02:31.9]}
15... Qf6 {[%clk 0:02:33.3]} 16. Qg4 {[%clk 0:02:14.6]} 16... Ne5 {[%clk
0:02:16.3]} 17. Bxe6+ {[%clk 0:01:45.9]} 17... Kh8 {[%clk 0:02:15.3]} 18. Qh3
{[%clk 0:01:41.7]} 18... g5 {[%clk 0:02:09.6]} 19. Bxc8 {[%clk 0:01:24.1]} 19...
gxf4 {[%clk 0:02:04.3]} 20. Bf5 {[%clk 0:01:22.6]} 20... Qh6 {[%clk 0:02:00.5]}
21. Qxh6 {[%clk 0:01:10.7]} 21... Bxh6 {[%clk 0:01:59.5]} 22. g3 {[%clk
0:01:03.6]} 22... Nf7 {[%clk 0:01:47.1]} 23. gxf4 {[%clk 0:00:57.7]} 23... Nd6
{[%clk 0:01:45.9]} 24. Be6 {[%clk 0:00:33]} 24... Nxe4 {[%clk 0:01:43.7]} 25.
Bd5 {[%clk 0:00:29.8]} 25... Nc5 {[%clk 0:01:40.9]} 26. f5 {[%clk 0:00:23.5]}
26... Bxc1 {[%clk 0:01:32.1]} 27. Rxc1 {[%clk 0:00:23.5]} 27... Kg7 {[%clk
0:01:31.5]} 28. Re1 {[%clk 0:00:22.8]} 28... Kf6 {[%clk 0:01:29.5]} 29. Be6
{[%clk 0:00:19.9]} 29... Na4 {[%clk 0:01:19.7]} 30. b3 {[%clk 0:00:19.4]} 30...
Nc3 {[%clk 0:01:19.8]} 31. a4 {[%clk 0:00:18.8]} 31... Rd8 {[%clk 0:01:13.5]}
32. Kf2 {[%clk 0:00:18.7]} 32... b6 {[%clk 0:01:13.2]} 33. Bc4 {[%clk
0:00:14.3]} 33... Rd6 {[%clk 0:01:12.6]} 34. Bd3 {[%clk 0:00:14.2]} 34... Nd5
{[%clk 0:01:09.3]} 35. Re8 {[%clk 0:00:13.3]} 35... Nb4 {[%clk 0:01:06.8]} 36.
Rh8 {[%clk 0:00:12.5]} 36... Kg7 {[%clk 0:01:05.3]} 37. Ra8 {[%clk 0:00:11.7]}
37... Rd7 {[%clk 0:01:05.2]} 38. Ke2 {[%clk 0:00:11.4]} 38... Re7+ {[%clk
0:01:03.5]} 39. Kf3 {[%clk 0:00:10.8]} 39... Rc7 {[%clk 0:01:02.7]} 40. Kf4
{[%clk 0:00:09.7]} 40... Kf6 {[%clk 0:01:03]} 41. Rf8+ {[%clk 0:00:08.7]} 41...
Kg7 {[%clk 0:01:02.9]} 42. Ra8 {[%clk 0:00:08.5]} 42... Kf6 {[%clk 0:01:02.4]}
43. h4 {[%clk 0:00:08.6]} 43... Nxc2 {[%clk 0:00:59.9]} 44. Bxc2 {[%clk
0:00:08.2]} 44... Rxc2 {[%clk 0:01:00]} 45. Rxa7 {[%clk 0:00:08.7]} 45... Rf2+
{[%clk 0:00:59.9]} 46. Kg3 {[%clk 0:00:08.9]} 46... Rxf5 {[%clk 0:00:59.4]} 47.
Rd7 {[%clk 0:00:08.4]} 47... Ke5 {[%clk 0:00:58.2]} 48. Rxh7 {[%clk 0:00:08.3]}
48... d3 {[%clk 0:00:57.4]} 49. Rd7 {[%clk 0:00:08]} 49... Ke4 {[%clk
0:00:57.7]} 50. Re7+ {[%clk 0:00:08.1]} 50... Kd4 {[%clk 0:00:57.2]} 51. Kg4
{[%clk 0:00:08.4]} 51... Rd5 {[%clk 0:00:57]} 52. Re1 {[%clk 0:00:06.1]} 52...
d2 {[%clk 0:00:57.3]} 53. Rh1 {[%clk 0:00:05.8]} 53... Kc3 {[%clk 0:00:57.1]}
54. h5 {[%clk 0:00:06.2]} 54... Kxb3 {[%clk 0:00:57.2]} 55. h6 {[%clk
0:00:06.3]} 55... Rd8 {[%clk 0:00:56.7]} 56. h7 {[%clk 0:00:06.3]} 56... Kc2
{[%clk 0:00:56.7]} 57. Rh2 {[%clk 0:00:04.1]} 57... Kc1 {[%clk 0:00:55.9]} 58.
h8=Q {[%clk 0:00:02.9]} 58... Rxh8 {[%clk 0:00:54.8]} 59. Rxh8 {[%clk
0:00:03.1]} 59... d1=Q+ {[%clk 0:00:54.5]} 60. Kg5 {[%clk 0:00:02.5]} 60... Qxa4
{[%clk 0:00:50.2]} 61. Kg6 {[%clk 0:00:02.4]} 61... Kc2 {[%clk 0:00:50.1]} 0-1

[Event "Early-Titled-Tuesday-Blitz-July-09-2024"]
[Site "Chess.com"]
[Date "2024.07.09"]
[Round "5"]
[White "InitiatingASC"]
[Black "Erdnya15"]
[Result "0-1"]
[WhiteElo "2427"]
[BlackElo "2596"]
[TimeControl "180+1"]
[EndTime "8:58:36 PDT"]
[Termination "Erdnya15 won by checkmate"]

1. d4 {[%clk 0:03:00.9]} 1... d5 {[%clk 0:02:59.5]} 2. c4 {[%clk 0:03:00.4]}
2... c6 {[%clk 0:02:59.5]} 3. Nf3 {[%clk 0:03:00.4]} 3... Nf6 {[%clk 0:02:59.2]}
4. g3 {[%clk 0:03:00.8]} 4... g6 {[%clk 0:02:59]} 5. Bg2 {[%clk 0:03:01]} 5...
Bg7 {[%clk 0:02:59.7]} 6. O-O {[%clk 0:03:01.1]} 6... dxc4 {[%clk 0:02:59.8]} 7.
Ne5 {[%clk 0:03:00.6]} 7... Ng4 {[%clk 0:02:53.8]} 8. Nxg4 {[%clk 0:02:45.5]}
8... Bxg4 {[%clk 0:02:49.7]} 9. Be3 {[%clk 0:02:39.4]} 9... O-O {[%clk
0:02:35.7]} 10. Na3 {[%clk 0:02:37.8]} 10... Be6 {[%clk 0:02:15.5]} 11. Rc1
{[%clk 0:02:32.9]} 11... Bd5 {[%clk 0:02:06.5]} 12. Nxc4 {[%clk 0:02:30.5]}
12... Bxg2 {[%clk 0:02:05.9]} 13. Kxg2 {[%clk 0:02:30.6]} 13... Na6 {[%clk
0:02:06.7]} 14. Qd2 {[%clk 0:02:18]} 14... Nc7 {[%clk 0:01:59.3]} 15. f3 {[%clk
0:02:12.8]} 15... Ne6 {[%clk 0:01:48.7]} 16. Rfd1 {[%clk 0:02:10.8]} 16... h5
{[%clk 0:01:43.3]} 17. Na5 {[%clk 0:02:07.9]} 17... Rb8 {[%clk 0:01:18.8]} 18.
Nb3 {[%clk 0:02:06.4]} 18... Qd5 {[%clk 0:01:15.3]} 19. Bf2 {[%clk 0:01:52.3]}
19... f5 {[%clk 0:01:13.3]} 20. Qa5 {[%clk 0:01:30.2]} 20... Qd7 {[%clk
0:00:58.8]} 21. Nc5 {[%clk 0:01:25.8]} 21... Nxc5 {[%clk 0:00:58.3]} 22. Qxc5
{[%clk 0:01:25.5]} 22... Qe6 {[%clk 0:00:57.2]} 23. Qc4 {[%clk 0:01:13.8]} 23...
Qxc4 {[%clk 0:00:54.8]} 24. Rxc4 {[%clk 0:01:14.7]} 24... e6 {[%clk 0:00:55.1]}
25. e3 {[%clk 0:01:10.4]} 25... Rbd8 {[%clk 0:00:54]} 26. Rb1 {[%clk 0:01:09.8]}
26... e5 {[%clk 0:00:50.9]} 27. dxe5 {[%clk 0:01:06]} 27... Bxe5 {[%clk
0:00:51.8]} 28. Rc2 {[%clk 0:01:05.7]} 28... Rd3 {[%clk 0:00:49.7]} 29. Re1
{[%clk 0:01:01.8]} 29... Rfd8 {[%clk 0:00:46.3]} 30. Ree2 {[%clk 0:01:02.4]}
30... a6 {[%clk 0:00:43.7]} 31. Be1 {[%clk 0:01:02.7]} 31... g5 {[%clk
0:00:42.9]} 32. Kf2 {[%clk 0:01:02.7]} 32... g4 {[%clk 0:00:38.6]} 33. f4 {[%clk
0:00:48.9]} 33... Bb8 {[%clk 0:00:30.7]} 34. Ba5 {[%clk 0:00:37.2]} 34... R8d5
{[%clk 0:00:30]} 35. Bb6 {[%clk 0:00:37.5]} 35... Kf7 {[%clk 0:00:26.5]} 36. Rc5
{[%clk 0:00:30.6]} 36... Rxc5 {[%clk 0:00:23.8]} 37. Bxc5 {[%clk 0:00:30.7]}
37... Ke6 {[%clk 0:00:24.7]} 38. e4 {[%clk 0:00:26.2]} 38... fxe4 {[%clk
0:00:23.9]} 39. Be3 {[%clk 0:00:14.9]} 39... Kd5 {[%clk 0:00:18.3]} 40. Rc2
{[%clk 0:00:14.7]} 40... Bd6 {[%clk 0:00:16.1]} 41. Ke2 {[%clk 0:00:15]} 41...
c5 {[%clk 0:00:13.9]} 42. b3 {[%clk 0:00:13.1]} 42... b5 {[%clk 0:00:14.1]} 43.
Bc1 {[%clk 0:00:11.5]} 43... c4 {[%clk 0:00:13.9]} 44. bxc4+ {[%clk 0:00:09.8]}
44... bxc4 {[%clk 0:00:14.8]} 45. Be3 {[%clk 0:00:09.9]} 45... c3 {[%clk
0:00:14.6]} 46. Rc1 {[%clk 0:00:08.8]} 46... Kc4 {[%clk 0:00:13.4]} 47. Rd1
{[%clk 0:00:04]} 47... Rxd1 {[%clk 0:00:10.1]} 48. Kxd1 {[%clk 0:00:04.3]} 48...
Kd3 {[%clk 0:00:09.9]} 49. Bb6 {[%clk 0:00:02.5]} 49... c2+ {[%clk 0:00:10.1]}
50. Kc1 {[%clk 0:00:02.8]} 50... Ba3# {[%clk 0:00:06]} 0-1

[Event "Early-Titled-Tuesday-Blitz-July-09-2024"]
[Site "Chess.com"]
[Date "2024.07.09"]
[Round "5"]
[White "AcostaPablo"]
[Black "PLAYER_2006_M"]
[Result "0-1"]
[WhiteElo "2699"]
[BlackElo "2946"]
[TimeControl "180+1"]
[EndTime "8:58:38 PDT"]
[Termination "PLAYER_2006_M won by resignation"]

1. d4 {[%clk 0:03:00]} 1... e6 {[%clk 0:02:58.1]} 2. c4 {[%clk 0:02:59.4]} 2...
b6 {[%clk 0:02:58.2]} 3. Nc3 {[%clk 0:02:58.7]} 3... Bb4 {[%clk 0:02:53.3]} 4.
Bd2 {[%clk 0:02:57.8]} 4... Bb7 {[%clk 0:02:53.1]} 5. e3 {[%clk 0:02:54.5]} 5...
Nf6 {[%clk 0:02:52.6]} 6. f3 {[%clk 0:02:51.1]} 6... O-O {[%clk 0:02:50.7]} 7.
Bd3 {[%clk 0:02:50.9]} 7... d5 {[%clk 0:02:50]} 8. Nge2 {[%clk 0:02:49.1]} 8...
dxc4 {[%clk 0:02:50]} 9. Bxc4 {[%clk 0:02:48.8]} 9... c5 {[%clk 0:02:50.6]} 10.
a3 {[%clk 0:02:46.4]} 10... cxd4 {[%clk 0:02:33.4]} 11. axb4 {[%clk 0:02:43.4]}
11... dxc3 {[%clk 0:02:33.5]} 12. Bxc3 {[%clk 0:02:39.9]} 12... Qe7 {[%clk
0:02:29.2]} 13. O-O {[%clk 0:02:38.6]} 13... Rc8 {[%clk 0:02:24.8]} 14. Bb3
{[%clk 0:02:30.7]} 14... Na6 {[%clk 0:02:21.4]} 15. Qe1 {[%clk 0:02:26.9]} 15...
Nc7 {[%clk 0:02:15.1]} 16. Qg3 {[%clk 0:02:20.4]} 16... Bd5 {[%clk 0:02:05.2]}
17. Bxd5 {[%clk 0:02:13.7]} 17... Ncxd5 {[%clk 0:02:02.7]} 18. e4 {[%clk
0:02:07.1]} 18... Nxb4 {[%clk 0:01:45.8]} 19. Rfd1 {[%clk 0:02:06.8]} 19... Nc6
{[%clk 0:01:22.8]} 20. Nf4 {[%clk 0:02:02.8]} 20... Rd8 {[%clk 0:01:09.6]} 21.
Qg5 {[%clk 0:01:47.8]} 21... h6 {[%clk 0:01:04.3]} 22. Qb5 {[%clk 0:01:43.7]}
22... Rac8 {[%clk 0:00:48.3]} 23. Kf1 {[%clk 0:01:38.6]} 23... Ne8 {[%clk
0:00:43.3]} 24. g3 {[%clk 0:01:20.5]} 24... Qg5 {[%clk 0:00:34.5]} 25. e5 {[%clk
0:01:07.4]} 25... Qe7 {[%clk 0:00:30.6]} 26. Ke2 {[%clk 0:01:02.7]} 26... Qb7
{[%clk 0:00:29.1]} 27. Qb3 {[%clk 0:00:46.6]} 27... Nc7 {[%clk 0:00:26.2]} 28.
Qc4 {[%clk 0:00:39.2]} 28... Nd5 {[%clk 0:00:19.7]} 29. Nxd5 {[%clk 0:00:34]}
29... exd5 {[%clk 0:00:20.6]} 30. Rxd5 {[%clk 0:00:28.9]} 30... Nd4+ {[%clk
0:00:16.7]} 31. Rxd4 {[%clk 0:00:23.6]} 31... Rxc4 {[%clk 0:00:16.5]} 32. Rxc4
{[%clk 0:00:24.1]} 32... a5 {[%clk 0:00:11.4]} 33. Re4 {[%clk 0:00:21.7]} 33...
Qd5 {[%clk 0:00:08.7]} 34. Kf2 {[%clk 0:00:16.7]} 34... Qe6 {[%clk 0:00:08.9]}
35. Kg2 {[%clk 0:00:14.6]} 35... Rd3 {[%clk 0:00:09.1]} 36. Rf4 {[%clk
0:00:11.2]} 36... Kh7 {[%clk 0:00:09.3]} 37. Re1 {[%clk 0:00:11.6]} 37... Qd5
{[%clk 0:00:07.8]} 38. e6 {[%clk 0:00:10.5]} 38... fxe6 {[%clk 0:00:07.5]} 39.
Rf7 {[%clk 0:00:11.1]} 39... e5 {[%clk 0:00:06.5]} 40. Rxe5 {[%clk 0:00:10.2]}
40... Qxf7 {[%clk 0:00:05.8]} 41. f4 {[%clk 0:00:08.8]} 41... a4 {[%clk
0:00:05.1]} 42. Rb5 {[%clk 0:00:07.9]} 42... Qb7+ {[%clk 0:00:04.6]} 43. Kf2
{[%clk 0:00:07.1]} 43... Qc6 {[%clk 0:00:05.3]} 44. Re5 {[%clk 0:00:06.5]} 44...
Rxc3 {[%clk 0:00:05.6]} 45. bxc3 {[%clk 0:00:06.6]} 45... a3 {[%clk 0:00:06.4]}
46. Re2 {[%clk 0:00:04.8]} 46... Qxc3 {[%clk 0:00:06.7]} 47. Re3 {[%clk
0:00:05.4]} 47... Qb2+ {[%clk 0:00:06.4]} 0-1

[Event "Early-Titled-Tuesday-Blitz-July-09-2024"]
[Site "Chess.com"]
[Date "2024.07.09"]
[Round "5"]
[White "artin10862"]
[Black "Potosino1970"]
[Result "1-0"]
[WhiteElo "2956"]
[BlackElo "2717"]
[TimeControl "180+1"]
[EndTime "8:58:40 PDT"]
[Termination "artin10862 won by resignation"]

1. e4 {[%clk 0:03:00.9]} 1... d6 {[%clk 0:02:58.8]} 2. Nf3 {[%clk 0:02:57.2]}
2... Nf6 {[%clk 0:02:58.4]} 3. Nc3 {[%clk 0:02:56.4]} 3... e5 {[%clk 0:02:53.1]}
4. Bc4 {[%clk 0:02:55.9]} 4... Be7 {[%clk 0:02:53]} 5. d3 {[%clk 0:02:54.6]}
5... c6 {[%clk 0:02:51.5]} 6. a3 {[%clk 0:02:54.2]} 6... O-O {[%clk 0:02:51.1]}
7. O-O {[%clk 0:02:54.2]} 7... b5 {[%clk 0:02:42.9]} 8. Ba2 {[%clk 0:02:53.7]}
8... Bb7 {[%clk 0:02:41.6]} 9. Ng5 {[%clk 0:02:39.4]} 9... h6 {[%clk 0:02:37.4]}
10. Nh3 {[%clk 0:02:39.1]} 10... a5 {[%clk 0:02:35.8]} 11. f4 {[%clk 0:02:37.5]}
11... b4 {[%clk 0:02:34.4]} 12. Ne2 {[%clk 0:02:32.9]} 12... Nbd7 {[%clk
0:02:30.7]} 13. Ng3 {[%clk 0:02:21.7]} 13... d5 {[%clk 0:02:16.9]} 14. fxe5
{[%clk 0:02:13.2]} 14... Nxe5 {[%clk 0:02:16.7]} 15. d4 {[%clk 0:02:13.9]} 15...
Ng6 {[%clk 0:02:14.8]} 16. e5 {[%clk 0:02:12.2]} 16... Ne4 {[%clk 0:02:08.1]}
17. Nxe4 {[%clk 0:02:00.9]} 17... dxe4 {[%clk 0:02:09]} 18. c3 {[%clk
0:02:01.4]} 18... c5 {[%clk 0:02:00.6]} 19. Qg4 {[%clk 0:01:33.5]} 19... Bd5
{[%clk 0:01:55.2]} 20. e6 {[%clk 0:01:17]} 20... Bxa2 {[%clk 0:01:37.6]} 21.
Rxa2 {[%clk 0:01:16.4]} 21... Qd5 {[%clk 0:01:35.1]} 22. exf7+ {[%clk
0:01:05.4]} 22... Rxf7 {[%clk 0:01:35.1]} 23. Rxf7 {[%clk 0:01:05.7]} 23... Qxf7
{[%clk 0:01:34.9]} 24. Ra1 {[%clk 0:01:06.3]} 24... cxd4 {[%clk 0:01:27.9]} 25.
cxd4 {[%clk 0:01:01.9]} 25... Rf8 {[%clk 0:01:20.9]} 26. Be3 {[%clk 0:01:01.6]}
26... Qf5 {[%clk 0:01:08.3]} 27. Qxf5 {[%clk 0:00:56.3]} 27... Rxf5 {[%clk
0:01:09.2]} 28. axb4 {[%clk 0:00:56.8]} 28... Bxb4 {[%clk 0:01:08.4]} 29. Nf2
{[%clk 0:00:57.4]} 29... Ne7 {[%clk 0:01:05.1]} 30. Nxe4 {[%clk 0:00:51.1]}
30... Nd5 {[%clk 0:01:04.9]} 31. Bf2 {[%clk 0:00:50]} 31... Rf7 {[%clk
0:01:00.7]} 32. Nc5 {[%clk 0:00:42.2]} 32... Re7 {[%clk 0:00:55.9]} 33. Nb3
{[%clk 0:00:33.7]} 33... Re2 {[%clk 0:00:53.9]} 34. Nxa5 {[%clk 0:00:33.7]}
34... Rxb2 {[%clk 0:00:47.2]} 35. Nc4 {[%clk 0:00:33.8]} 35... Rc2 {[%clk
0:00:44.5]} 36. Ne3 {[%clk 0:00:32]} 36... Nxe3 {[%clk 0:00:41.2]} 37. Bxe3
{[%clk 0:00:32.9]} 37... Re2 {[%clk 0:00:41.3]} 38. Bf4 {[%clk 0:00:27.1]} 38...
Bc3 {[%clk 0:00:39.5]} 39. Ra8+ {[%clk 0:00:23.8]} 39... Kh7 {[%clk 0:00:38]}
40. Be5 {[%clk 0:00:24.2]} 40... Re4 {[%clk 0:00:37.7]} 41. Rd8 {[%clk
0:00:21.1]} 41... g5 {[%clk 0:00:35.3]} 42. h3 {[%clk 0:00:18]} 42... h5 {[%clk
0:00:34.9]} 43. Rd6 {[%clk 0:00:13.8]} 43... h4 {[%clk 0:00:28.2]} 44. Kf2
{[%clk 0:00:12.7]} 44... Bd2 {[%clk 0:00:24.1]} 45. Kf3 {[%clk 0:00:11.6]} 45...
Re1 {[%clk 0:00:19.8]} 46. Kg4 {[%clk 0:00:11.8]} 46... Re2 {[%clk 0:00:19]} 47.
Kh5 {[%clk 0:00:11.6]} 47... Kg8 {[%clk 0:00:18.8]} 48. Kg6 {[%clk 0:00:10.1]}
48... Kf8 {[%clk 0:00:18.9]} 49. Re6 {[%clk 0:00:08.6]} 49... Bf4 {[%clk
0:00:17.3]} 50. Bd6+ {[%clk 0:00:08.3]} 1-0